{"text_format":"1","workbook":"xlsx","n_sheets":5,"sheets":["FICHA MÉDICA PADRÃO","braços","pernas","tronco","cabeça"],"not_rendered":{"charts":0,"images":8,"macros":1,"external_links":0,"defined_names":4,"comments":0,"pivot_tables":0},"unopened":[],"bounds":{"document_bytes":16777216,"sheet_cells":100000,"rows_first":2000,"rows_last":500,"rows_between":2000,"halvings":0,"cell_chars":16384,"cell_head_chars":4096},"cells_cut":0,"cells_raw":0,"read":"whole","date_system":"1900"}

{"sheet":"FICHA MÉDICA PADRÃO","index":0,"n_rows":40,"n_cols":8,"rows_kept":40,"cut":false,"hidden":false,"merged":[[17,0,24,0],[25,0,32,0],[10,7,10,15],[9,7,9,15],[8,7,8,15],[11,7,11,15],[12,7,12,15],[0,4,0,6],[1,0,8,0],[9,0,16,0],[7,7,7,15],[6,7,6,15],[5,7,5,15],[4,7,4,15],[3,7,3,15],[2,7,2,15],[1,7,1,15],[13,7,13,15],[39,7,40,15]]}
[null,"Nº","FERIMENTO","AÇÃO","ID DO OPERADOR"]
[null,1,{"$f":"IFERROR(VLOOKUP('FICHA MÉDICA PADRÃO'!D2,braços!A:D,2,0),\"\")","v":"LEVE"},"O TIRO NÃO ACERTOU EM CHEIO, LAVE O LOCAL E PERMANEÇA 2 MINUTOS FORA DE COMBATE",null,null,null,"DICAS IMPORTANTES"]
[null,2,{"$f":"IFERROR(VLOOKUP('FICHA MÉDICA PADRÃO'!D3,braços!A:D,2,0),\"\")","v":"LEVE"},"O TIRO ACERTOU O ANTE BRAÇO, APENAS LAVE O LOCAL COM AGUA E FAÇA UM CURATIVO",null,null,null,"CLIQUE SOBRE O ESPAÇO DA AÇÃO, NO CANTO VOCÊ PODERÁ ABRIR O MENU SUSPENSO E ESCOLHER POR AÇÕES PRÉ DEFINIDAS"]
[null,3,{"$f":"IFERROR(VLOOKUP('FICHA MÉDICA PADRÃO'!D4,braços!A:D,2,0),\"\")","v":"GRAVE CRÍTICO"},"O TIRO ACERTOU SEU COTOVELO,  O FERIDO DEVE SE DIRIGIR AO HC OU BASE",null,null,null,"ESCOLHA APENAS A AÇÃO, O FERIMENTO SERÁ ATRIBUÍDO AUTOMATICAMENTE"]
[null,4,{"$f":"IFERROR(VLOOKUP('FICHA MÉDICA PADRÃO'!D5,braços!A:D,2,0),\"\")","v":"MÉDIO CRÍTICO"},"SUA MÃO FOI COMPROMETIDA COM O DISPARO, FAÇA UM CURATIVO QUE RESTRINJA O MOVIMENTO (USE ATADURA)",null,null,null,"SE QUISER JOGOS MAIS DINAMICOS, OPTE POR MAIS FERIMENTOS ENTRE \"DE RASPÃO, LEVE  E MÉDIO\" "]
[null,5,{"$f":"IFERROR(VLOOKUP('FICHA MÉDICA PADRÃO'!D6,braços!A:D,2,0),\"\")","v":"LEVE"},"SORTE, UM CURATIVO NO LOCAL SERÁ O SUFICIENTE (USE ATADURA) ",null,null,null,"CASO ESCOLHA OPÇÕES QUE ENTREGUEM ITENS AO OPERADOR, NÃO ESQUEÇA DE FORNECE-LOS"]
[null,6,{"$f":"IFERROR(VLOOKUP('FICHA MÉDICA PADRÃO'!D7,braços!A:D,2,0),\"\")","v":"DE RASPÃO"},"MUITA SORTE, VOCÊ PODE VOLTAR AO COMBATE",null,null,null,"ITENS QUE ENVIAM O OPERADOR DE VOLTA AO HC OU BASE SÓ PODEM EXISTIR EM JOGOS ONDE EXISTEM ESTES LOCAIS"]
[null,7,{"$f":"IFERROR(VLOOKUP('FICHA MÉDICA PADRÃO'!D8,braços!A:D,2,0),\"\")","v":"SORTE?"},"SOLICITE UM NUMERO DE 1 A 10. SE O ESCOLHIDO FOR MAIOR QUE 6 ELE PODE RETORNAR AO COMBATE. SE FOR MENOR FAÇA UM CURATIVO",null,null,null,"CRIE SUA FMP, LEVANDO EM CONSIDERAÇÃO A DINAMICA DE SUA OPERAÇÃO"]
[null,8,{"$f":"IFERROR(VLOOKUP('FICHA MÉDICA PADRÃO'!D9,braços!A:D,2,0),\"\")","v":"GRAVE CRÍTICO"},"O TIRO ACERTOU SEU COTOVELO,  O FERIDO DEVE SE DIRIGIR AO HC OU BASE",null,null,null,"EM LOCAIS GRANDES E POUCOS JOGADORES, RECOMENDAMOS NÃO OPTAR POR MUITAS AÇÕES QUE LEVEM O JOGADOR AO HC OU BASE"]
[null,1,{"$f":"IFERROR(VLOOKUP('FICHA MÉDICA PADRÃO'!D10,pernas!A:D,2,0),\"\")","v":"DE RASPÃO"},"MUITA SORTE, VOCÊ PODE VOLTAR AO COMBATE",null,null,null,"EM LOCAIS PEQUENOS E MUITOS JOGADORES, RECOMENDAMOS OPTAR POR MAIS AÇÕES QUE LEVEM O JOGADOR AO HC OU BASE"]
[null,2,{"$f":"IFERROR(VLOOKUP('FICHA MÉDICA PADRÃO'!D11,pernas!A:D,2,0),\"\")","v":"LEVE"},"SORTE, UM CURATIVO NO LOCAL SERÁ O SUFICIENTE (USE ATADURA) ",null,null,null,"LEMBRE-SE DE CRIAR MAIS DE UM MODELO DE FICHA PARA CADA JOGO, ASSIM OS MÉDICOS NÃO TERÃO TODOS FICHAS IGUAIS"]
[null,3,{"$f":"IFERROR(VLOOKUP('FICHA MÉDICA PADRÃO'!D12,pernas!A:D,2,0),\"\")","v":"DE RASPÃO"},"MUITA SORTE, VOCÊ PODE VOLTAR AO COMBATE",null,null,null,"CASO QUEIRA CRIAR ACÕES DIFERENTES BASTA DIGITAR SOBRE O ESPAÇO AO INVÉS DE SELECIONAR NO MENU SUSPENSO"]
[null,4,{"$f":"IFERROR(VLOOKUP('FICHA MÉDICA PADRÃO'!D13,pernas!A:D,2,0),\"\")","v":"GRAVE CRÍTICO"},"O DISPARO IMOBILIZOU A PERNA, O FERIDO DEVE SER REMOVIDO POR OUTRO OPERADOR ATÉ O HC OU BASE",null,null,null,"EVITE QUE SUA FMP OCUPE DUAS PÁGINAS"]
[null,5,{"$f":"IFERROR(VLOOKUP('FICHA MÉDICA PADRÃO'!D14,pernas!A:D,2,0),\"\")","v":"GRAVE CRÍTICO"},"O TIRO ACERTOU SEU JOELHO,  O FERIDO DEVE SE DIRIGIR AO HC OU BASE",null,null,null,"NÃO ESQUEÇA USANDO  A FMP SEM FMI, O ID DO OPERADOR NO MOMENTO DO ATENDIMENTO DEVE SER ANOTADO NA  FMP"]
[null,6,{"$f":"IFERROR(VLOOKUP('FICHA MÉDICA PADRÃO'!D15,pernas!A:D,2,0),\"\")","v":"MÉDIO"},"O TIRO TRANSPASSOU E NÃO ACERTOU ÁREA VITAL, FAÇA UM CURATIVO, O FERIDO DEVE PERMANECER 2 MINUTOS FORA DE COMBATE"]
[null,7,{"$f":"IFERROR(VLOOKUP('FICHA MÉDICA PADRÃO'!D16,pernas!A:D,2,0),\"\")","v":"DE RASPÃO"},"MUITA SORTE, VOCÊ PODE VOLTAR AO COMBATE"]
[null,8,{"$f":"IFERROR(VLOOKUP('FICHA MÉDICA PADRÃO'!D17,pernas!A:D,2,0),\"\")","v":"MÉDIO"},"O TIRO TRANSPASSOU E NÃO ACERTOU ÁREA VITAL, FAÇA UM CURATIVO, O FERIDO DEVE PERMANECER 2 MINUTOS FORA DE COMBATE"]
[null,1,{"$f":"IFERROR(VLOOKUP('FICHA MÉDICA PADRÃO'!D18,tronco!A:D,2,0),\"\")","v":"LEVE"},"O TIRO NÃO ACERTOU EM CHEIO, LAVE O LOCAL E PERMANEÇA 2 MINUTOS FORA DE COMBATE"]
[null,2,{"$f":"IFERROR(VLOOKUP('FICHA MÉDICA PADRÃO'!D19,tronco!A:D,2,0),\"\")","v":"GRAVE"},"O TIRO ACERTOU PRÓXIMO AO CORAÇÃO, DE ÁGUA AO FERIDO E FAÇA UM CURATIVO, O FERIDO DEVE PERMANECER 20 MINUTOS FORA DE COMBATE"]
[null,3,{"$f":"IFERROR(VLOOKUP('FICHA MÉDICA PADRÃO'!D20,tronco!A:D,2,0),\"\")","v":"MÉDIO CRÍTICO"},"SUA RESPIRAÇÃO FOI COMPROMETIDA, FAÇA UM CURATIVO (USE ATADURA), O OPERADOR DEVE PEMANECER SENTADO POR 10 MINUTOS (ELE ESTA EM COMBATE)"]
[null,4,{"$f":"IFERROR(VLOOKUP('FICHA MÉDICA PADRÃO'!D21,tronco!A:D,2,0),\"\")","v":"DE RASPÃO"},"MUITA SORTE, VOCÊ PODE VOLTAR AO COMBATE"]
[null,5,{"$f":"IFERROR(VLOOKUP('FICHA MÉDICA PADRÃO'!D22,tronco!A:D,2,0),\"\")","v":"MÉDIO CRÍTICO"},"O TIRO ACERTOU UMA COSTELA, FAÇA UM CURATIVO, O FERIDO DEVE PERMANECER 13 MINUTOS FORA DE COMBATE"]
[null,6,{"$f":"IFERROR(VLOOKUP('FICHA MÉDICA PADRÃO'!D23,tronco!A:D,2,0),\"\")","v":"DE RASPÃO"},"SORTE, LAVE O LOCAL COM AGUA"]
[null,7,{"$f":"IFERROR(VLOOKUP('FICHA MÉDICA PADRÃO'!D24,tronco!A:D,2,0),\"\")","v":"MÉDIO"},"O TIRO TRANSPASSOU, LIMPE O LOCAL COM AGUA E FAÇA UM CURATIVO, O FERIDO DEVE PERMANECER 5 MINUTOS FORA DE COMBATE"]
[null,8,{"$f":"IFERROR(VLOOKUP('FICHA MÉDICA PADRÃO'!D25,tronco!A:D,2,0),\"\")","v":"DE RASPÃO"},"MUITA SORTE, VOCÊ PODE VOLTAR AO COMBATE"]
[null,1,{"$f":"IFERROR(VLOOKUP('FICHA MÉDICA PADRÃO'!D26,cabeça!A:D,2,0),\"\")","v":"LEVE"},"O TIRO NÃO ACERTOU NENHUM PONTO VITAL, APENAS LAVE O LOCAL COM AGUA E FAÇA UM CURATIVO"]
[null,2,{"$f":"IFERROR(VLOOKUP('FICHA MÉDICA PADRÃO'!D27,cabeça!A:D,2,0),\"\")","v":"MÉDIO CRÍTICO"},"O TIRO ACERTOU SUA BOCA, FAÇA UM CURATIVO, O FERIDO DEVE PERMANECER 10 MINUTOS SEM USAR O RÁDIO "]
[null,3,{"$f":"IFERROR(VLOOKUP('FICHA MÉDICA PADRÃO'!D28,cabeça!A:D,2,0),\"\")","v":"LUCIDO?"},"O FERIDO DEVE RESPONDER À QUESTÃO 336 X 3. SE A RESPOSTA FOR 1008,  ELE PODE RETORNAR AO COMBATE. SE ERRAR DEVE VOLTAR AO HC OU BASE PARA CUIDADOS MÉDICOS"]
[null,4,{"$f":"IFERROR(VLOOKUP('FICHA MÉDICA PADRÃO'!D29,cabeça!A:D,2,0),\"\")","v":"DE RASPÃO"},"SORTE, LAVE O LOCAL COM AGUA"]
[null,5,{"$f":"IFERROR(VLOOKUP('FICHA MÉDICA PADRÃO'!D30,cabeça!A:D,2,0),\"\")","v":"MÉDIO"},"O TIRO PEGOU EM SUA ORELHA, LIMPE O LOCAL COM AGUA E FAÇA UM CURATIVO, O FERIDO DEVE PERMANECER 5 MINUTOS FORA DE COMBATE"]
[null,6,{"$f":"IFERROR(VLOOKUP('FICHA MÉDICA PADRÃO'!D31,cabeça!A:D,2,0),\"\")","v":"MÉDIO"},"O TIRO ACERTOU COMPROMETEU SUA VISÃO, FAÇA UM CURATIVO (USE ATADURA) E FIQUE 7 MINUTOS FORA DE COMBATE "]
[null,7,{"$f":"IFERROR(VLOOKUP('FICHA MÉDICA PADRÃO'!D32,cabeça!A:D,2,0),\"\")","v":"LEVE"},"O TIRO NÃO ACERTOU EM CHEIO, LAVE O LOCAL E PERMANEÇA 2 MINUTOS FORA DE COMBATE"]
[null,8,{"$f":"IFERROR(VLOOKUP('FICHA MÉDICA PADRÃO'!D33,cabeça!A:D,2,0),\"\")","v":"LEVE"},"O TIRO NÃO ACERTOU EM CHEIO, LAVE O LOCAL E PERMANEÇA 2 MINUTOS FORA DE COMBATE"]
[]
[]
[]
[]
[]
[]
[null,null,null,null,null,null,null,"NÃO ESCOLHA ESTE ITEM, ELE APENAS SERVE PARA DIVIDIR AS AÇÕES PELOS GRAUS DE FERIMENTOS E FACILITAR A SUA BUSCA"]

{"sheet":"braços","index":1,"n_rows":30,"n_cols":2,"rows_kept":30,"cut":false,"hidden":true,"merged":[]}
["DE RASPÃO"]
["MUITA SORTE, VOCÊ PODE VOLTAR AO COMBATE","DE RASPÃO"]
["SORTE, LAVE O LOCAL COM AGUA","DE RASPÃO"]
["LEVE"]
["SORTE, UM CURATIVO NO LOCAL SERÁ O SUFICIENTE (USE ATADURA) ","LEVE"]
["O TIRO ACERTOU O ANTE BRAÇO, APENAS LAVE O LOCAL COM AGUA E FAÇA UM CURATIVO","LEVE"]
["O TIRO NÃO ACERTOU EM CHEIO, LAVE O LOCAL E PERMANEÇA 2 MINUTOS FORA DE COMBATE","LEVE"]
["MÉDIO"]
["O TIRO TRANSPASSOU E NÃO ACERTOU ÁREA VITAL, FAÇA UM CURATIVO, O FERIDO DEVE PERMANECER 2 MINUTOS FORA DE COMBATE","MÉDIO"]
["O TIRO TRANSPASSOU, LIMPE O LOCAL COM AGUA E FAÇA UM CURATIVO, O FERIDO DEVE PERMANECER 5 MINUTOS FORA DE COMBATE","MÉDIO"]
["O TIRO ACERTOU PRÓXIMO AO COTOVELO, FAÇA UM CURATIVO (USE ATADURA) E FIQUE 7 MINUTOS FORA DE COMBATE ","MÉDIO"]
["O TIRO ACERTOU SEU COTOVELO, FAÇA UMA CURATIVO NO LOCAL RESTRISGINDO O MOVIMENTO","MÉDIO"]
["O TIRO ACERTOU SEU OMBRO, FAÇA UM CURATIVO (USE ATADURA) NO LOCAL E NÃO MEXA O BRAÇO POR 10 MINUTOS","MÉDIO"]
["MÉDIO CRÍTICO"]
["O FERIMENTO NÃO É GRAVE, MAS VOCÊ DEVE SE DIRIGIR AO HC OU BASE PARA UMA SUTURA ","MÉDIO CRÍTICO"]
["O TIRO ACERTOU UM OSSO, FAÇA UM CURATIVO, O FERIDO DEVE PERMANECER 10 MINUTOS SEM DISPARAR ","MÉDIO CRÍTICO"]
["O TIRO ACERTOU UM OSSO, FAÇA UM CURATIVO, O FERIDO DEVE PERMANECER 13 MINUTOS FORA DE COMBATE","MÉDIO CRÍTICO"]
["SUA MÃO FOI COMPROMETIDA COM O DISPARO, FAÇA UM CURATIVO QUE RESTRINJA O MOVIMENTO (USE ATADURA)","MÉDIO CRÍTICO"]
["GRAVE"]
["O TIRO ACERTOU PRÓXIMO AO OMBRO, DE ÁGUA AO FERIDO E FAÇA UM CURATIVO, O FERIDO DEVE PERMANECER 20 MINUTOS FORA DE COMBATE","GRAVE"]
["O TIRO COMPROMETEU O COTOVELO, FAÇA UM CURATIVO NA ARTICULAÇÃO E PERMANEÇA 15 MINUTOS FORA DE COMBATE","GRAVE"]
["O TIRO ACERTOU SEU PUNHO, FAÇA UM CURATIVO E ENTREGUE UM PIRULITO (morfina) AO FERIDO. ELE NÃO DEVE EFETUAR DISPAROS ENQUANTO NÃO ACABAR A MORFINA","GRAVE"]
["GRAVE CRÍTICO"]
["O TIRO COMPROMETEU O MOVIMENTO, FAÇA UM CURATIVO QUE IMOBILIZE O BRAÇO JUNTO AO CORPO, OPERADOR DEVE PERMANECER ASSIM POR 40 MINUTOS","GRAVE CRÍTICO"]
["O TIRO ACERTOU SEU COTOVELO,  O FERIDO DEVE SE DIRIGIR AO HC OU BASE","GRAVE CRÍTICO"]
["O BRAÇO ESTA COMPROMETIDO, LAVE O LOCAL, O OPERADOR DEVE FICAR 25 MINUTOS FORA DE COMBATE","GRAVE CRÍTICO"]
["CONDICIONAL"]
["O FERIDO DEVE RESPONDER À QUESTÃO 234 X 3. SE O RESULTADO FOR 702 ELE PODE RETORNAR AO COMBATE. SE ERRAR DEVE VOLTAR AO HC OU BASE PARA CUIDADOS MÉDICOS","LUCIDO?"]
["O FERIDO DEVE RESPONDER À QUESTÃO 132 X 4. SE O RESULTADO FOR 528 ELE PODE RETORNAR AO COMBATE. SE ERRAR DEVE VOLTAR AO HC OU BASE PARA CUIDADOS MÉDICOS","LUCIDO?"]
["SOLICITE UM NUMERO DE 1 A 10. SE O ESCOLHIDO FOR MAIOR QUE 6 ELE PODE RETORNAR AO COMBATE. SE FOR MENOR FAÇA UM CURATIVO","SORTE?"]

{"sheet":"pernas","index":2,"n_rows":31,"n_cols":2,"rows_kept":31,"cut":false,"hidden":true,"merged":[]}
["DE RASPÃO"]
["MUITA SORTE, VOCÊ PODE VOLTAR AO COMBATE","DE RASPÃO"]
["SORTE, LAVE O LOCAL COM AGUA","DE RASPÃO"]
["LEVE"]
["SORTE, UM CURATIVO NO LOCAL SERÁ O SUFICIENTE (USE ATADURA) ","LEVE"]
["O TIRO ACERTOU A CANELA, APENAS LAVE O LOCAL COM AGUA E FAÇA UM CURATIVO","LEVE"]
["O TIRO NÃO ACERTOU EM CHEIO, LAVE O LOCAL E PERMANEÇA 2 MINUTOS FORA DE COMBATE","LEVE"]
["MÉDIO"]
["O TIRO TRANSPASSOU E NÃO ACERTOU ÁREA VITAL, FAÇA UM CURATIVO, O FERIDO DEVE PERMANECER 2 MINUTOS FORA DE COMBATE","MÉDIO"]
["O TIRO TRANSPASSOU, LIMPE O LOCAL COM AGUA E FAÇA UM CURATIVO, O FERIDO DEVE PERMANECER 5 MINUTOS FORA DE COMBATE","MÉDIO"]
["O TIRO ACERTOU PRÓXIMO AO JOELHO, FAÇA UM CURATIVO (USE ATADURA) E FIQUE 7 MINUTOS FORA DE COMBATE ","MÉDIO"]
["O TIRO ACERTOU O JOELHO, FAÇA UMA CURATIVO NO LOCAL RESTRISGINDO O MOVIMENTO","MÉDIO"]
["O TIRO ACERTOU SUA COXA, FAÇA UM CURATIVO (USE ATADURA) NO LOCAL E NÃO MEXA O BRAÇO POR 10 MINUTOS","MÉDIO"]
["MÉDIO CRÍTICO"]
["O FERIMENTO NÃO É GRAVE, MAS VOCÊ DEVE SE DIRIGIR AO HC OU BASE PARA UMA SUTURA ","MÉDIO CRÍTICO"]
["O TIRO ACERTOU UM OSSO, FAÇA UM CURATIVO, O FERIDO DEVE PERMANECER 10 MINUTOS SEM DISPARAR ","MÉDIO CRÍTICO"]
["O TIRO ACERTOU UM OSSO, FAÇA UM CURATIVO, O FERIDO DEVE PERMANECER 13 MINUTOS FORA DE COMBATE","MÉDIO CRÍTICO"]
["SEU JOELHO FOI COMPROMETIDO COM O DISPARO, FAÇA UM CURATIVO QUE RESTRINJA O MOVIMENTO  (USE ATADURA)","MÉDIO CRÍTICO"]
["GRAVE"]
["O TIRO ACERTOU PRÓXIMO À VIRILHA, DE ÁGUA AO FERIDO E FAÇA UM CURATIVO, O FERIDO DEVE PERMANECER 20 MINUTOS FORA DE COMBATE","GRAVE"]
["O TIRO COMPROMETEU SEU JOELHO, FAÇA UM CURATIVO NA ARTICULAÇÃO E PERMANEÇA 15 MINUTOS FORA DE COMBATE","GRAVE"]
["O TIRO ACERTOU UMA ARTÉRIA, FAÇA UM CURATIVO E ENTREGUE UM PIRULITO (morfina) AO FERIDO. ELE NÃO DEVE EFETUAR DISPAROS ENQUANTO NÃO ACABAR A MORFINA","GRAVE"]
["GRAVE CRÍTICO"]
["O TIRO COMPROMETEU O MOVIMENTO, FAÇA UM CURATIVO QUE IMOBILIZE A PERNA COM TALA, OPERADOR DEVE PERMANECER ASSIM POR 40 MINUTOS","GRAVE CRÍTICO"]
["O TIRO ACERTOU SEU JOELHO,  O FERIDO DEVE SE DIRIGIR AO HC OU BASE","GRAVE CRÍTICO"]
["A PERNA ESTA COMPROMETIDA, LAVE O LOCAL, O OPERADOR DEVE FICAR 25 MINUTOS FORA DE COMBATE","GRAVE CRÍTICO"]
["O DISPARO IMOBILIZOU A PERNA, O FERIDO DEVE SER REMOVIDO POR OUTRO OPERADOR ATÉ O HC OU BASE","GRAVE CRÍTICO"]
["CONDICIONAL"]
["O FERIDO DEVE RESPONDER À QUESTÃO 157 X 3. SE A RESPOSTA FOR 471 ELE PODE RETORNAR AO COMBATE. SE ERRAR DEVE FICAR FORA DE COMBATE POR 10 MINUTOS","LUCIDO?"]
["O FERIDO DEVE RESPONDER À QUESTÃO 220 X 4. SE A RESPOSTA FOR 880 ELE PODE RETORNAR AO COMBATE. SE ERRAR DEVE VOLTAR AO HC OU BASE PARA CUIDADOS MÉDICOS","LUCIDO?"]
["SOLICITE UM NUMERO DE 1 A 10. SE O ESCOLHIDO FOR MAIOR QUE 7 ELE PODE RETORNAR AO COMBATE. SE FOR MENOR FAÇA UM CURATIVO","SORTE?"]

{"sheet":"tronco","index":3,"n_rows":31,"n_cols":2,"rows_kept":31,"cut":false,"hidden":true,"merged":[]}
["DE RASPÃO"]
["MUITA SORTE, VOCÊ PODE VOLTAR AO COMBATE","DE RASPÃO"]
["SORTE, LAVE O LOCAL COM AGUA","DE RASPÃO"]
["LEVE"]
["SORTE, UM CURATIVO NO LOCAL SERÁ O SUFICIENTE (USE ATADURA) ","LEVE"]
["O TIRO NÃO ACERTOU NENHUM PONTO VITAL, APENAS LAVE O LOCAL COM AGUA E FAÇA UM CURATIVO","LEVE"]
["O TIRO NÃO ACERTOU EM CHEIO, LAVE O LOCAL E PERMANEÇA 2 MINUTOS FORA DE COMBATE","LEVE"]
["MÉDIO"]
["O TIRO TRANSPASSOU E NÃO ACERTOU ÁREA VITAL, FAÇA UM CURATIVO, O FERIDO DEVE PERMANECER 2 MINUTOS FORA DE COMBATE","MÉDIO"]
["O TIRO TRANSPASSOU, LIMPE O LOCAL COM AGUA E FAÇA UM CURATIVO, O FERIDO DEVE PERMANECER 5 MINUTOS FORA DE COMBATE","MÉDIO"]
["O TIRO ACERTOU PRÓXIMO AO EXTOMAGO, FAÇA UM CURATIVO (USE ATADURA) E FIQUE 7 MINUTOS FORA DE COMBATE ","MÉDIO"]
["O TIRO ACERTOU O PEITO, FAÇA UMA CURATIVO NO LOCAL E O OPERADOR DEVE PERMANECER 5 MINUTOS DEITADO (ELE ESTA EM COMBATE)","MÉDIO"]
["O TIRO ACERTOU UMA ARTÉRIA, FAÇA UM CURATIVO (USE 2  ATADURAS) NO LOCAL . O FERIDO DEVE PERMANECER 10 MINUTOS FORA DE COMBATE","MÉDIO"]
["MÉDIO CRÍTICO"]
["O FERIMENTO NÃO É GRAVE, MAS VOCÊ DEVE SE DIRIGIR AO HC OU BASE PARA UMA SUTURA ","MÉDIO CRÍTICO"]
["O TIRO ACERTOU UMA COSTELA, FAÇA UM CURATIVO, O FERIDO DEVE PERMANECER 10 MINUTOS SEM DISPARAR ","MÉDIO CRÍTICO"]
["O TIRO ACERTOU UMA COSTELA, FAÇA UM CURATIVO, O FERIDO DEVE PERMANECER 13 MINUTOS FORA DE COMBATE","MÉDIO CRÍTICO"]
["SUA RESPIRAÇÃO FOI COMPROMETIDA, FAÇA UM CURATIVO (USE ATADURA), O OPERADOR DEVE PEMANECER SENTADO POR 10 MINUTOS (ELE ESTA EM COMBATE)","MÉDIO CRÍTICO"]
["GRAVE"]
["O TIRO ACERTOU PRÓXIMO AO CORAÇÃO, DE ÁGUA AO FERIDO E FAÇA UM CURATIVO, O FERIDO DEVE PERMANECER 20 MINUTOS FORA DE COMBATE","GRAVE"]
["O TIRO COMPROMETEU A RESPIRAÇÃO, FAÇA UM CURATIVO E PERMANEÇA 15 MINUTOS FORA DE COMBATE","GRAVE"]
["O TIRO ACERTOU UMA ARTÉRIA, FAÇA UM CURATIVO E ENTREGUE UM PIRULITO (morfina) AO FERIDO. ELE NÃO DEVE EFETUAR DISPAROS ENQUANTO NÃO ACABAR A MORFINA","GRAVE"]
["GRAVE CRÍTICO"]
["O TIRO COMPROMETEU SEU FIGADO, FAÇA UM CURATIVO, ENTREGUE UM SACO DE SORO AO OPERADOR, ELE DEVE TRANSPORTAR ESTE SACO POR 25 MINUTOS (DEVOLVA AO MÉDICO APÓS ESTE TEMPO)","GRAVE CRÍTICO"]
["O TIRO ACERTOU SEU PULMÃO,  O FERIDO DEVE SE DIRIGIR AO HC OU BASE, DEVE SER CONSUZIDO PELO MÉDICO","GRAVE CRÍTICO"]
["O FERIMENTO ESTA SANGRANDO MUITO, LAVE O LOCAL, O OPERADOR DEVE FICAR 25 MINUTOS FORA DE COMBATE","GRAVE CRÍTICO"]
["O DISPARO ACERTOU O BAÇO, O FERIDO DEVE SER REMOVIDO POR OUTRO OPERADOR ATÉ O HC OU BASE","GRAVE CRÍTICO"]
["CONDICIONAL"]
["O FERIDO ESTA USANDO COLETE FECHADO?. SE A RESPOSTA FOR SIM,  ELE PODE RETORNAR AO COMBATE. SE FOR NÃO DEVE FICAR FORA DE COMBATE POR 10 MINUTOS","COLETE?"]
["O FERIDO ESTA USANDO CHEST RIG?. SE A RESPOSTA FOR SIM,  ELE PODE RETORNAR AO COMBATE. SE FOR NÃO DEVE FICAR FORA DE COMBATE POR 5 MINUTOS","COLETE?"]
["SOLICITE UM NUMERO DE 1 A 10. SE O ESCOLHIDO FOR MAIOR QUE 5 ELE PODE RETORNAR AO COMBATE. SE FOR MENOR FAÇA UM CURATIVO","SORTE?"]

{"sheet":"cabeça","index":4,"n_rows":32,"n_cols":2,"rows_kept":32,"cut":false,"hidden":true,"merged":[]}
["DE RASPÃO"]
["MUITA SORTE, VOCÊ PODE VOLTAR AO COMBATE","DE RASPÃO"]
["SORTE, LAVE O LOCAL COM AGUA","DE RASPÃO"]
["LEVE"]
["SORTE, UM CURATIVO NO LOCAL SERÁ O SUFICIENTE (USE ATADURA) ","LEVE"]
["O TIRO NÃO ACERTOU NENHUM PONTO VITAL, APENAS LAVE O LOCAL COM AGUA E FAÇA UM CURATIVO","LEVE"]
["O TIRO NÃO ACERTOU EM CHEIO, LAVE O LOCAL E PERMANEÇA 2 MINUTOS FORA DE COMBATE","LEVE"]
["MÉDIO"]
["O TIRO ACERTOU O MAXILAR, FAÇA UM CURATIVO, O FERIDO DEVE PERMANECER 2 MINUTOS FORA DE COMBATE","MÉDIO"]
["O TIRO PEGOU EM SUA ORELHA, LIMPE O LOCAL COM AGUA E FAÇA UM CURATIVO, O FERIDO DEVE PERMANECER 5 MINUTOS FORA DE COMBATE","MÉDIO"]
["O TIRO ACERTOU COMPROMETEU SUA VISÃO, FAÇA UM CURATIVO (USE ATADURA) E FIQUE 7 MINUTOS FORA DE COMBATE ","MÉDIO"]
["O TIRO ACERTOU SUA TESTA MAIS NÃO FOI FATAL, FAÇA UMA CURATIVO NO LOCAL E O OPERADOR DEVE PERMANECER 5 MINUTOS DEITADO (ELE ESTA EM COMBATE)","MÉDIO"]
["O TIRO ACERTOU NA TESTA, FAÇA UM CURATIVO (USE 2  ATADURAS) NO LOCAL . O FERIDO DEVE PERMANECER 10 MINUTOS FORA DE COMBATE","MÉDIO"]
["MÉDIO CRÍTICO"]
["O FERIMENTO NÃO É GRAVE, MAS VOCÊ DEVE SE DIRIGIR AO HC OU BASE PARA UMA SUTURA ","MÉDIO CRÍTICO"]
["O TIRO ACERTOU SUA BOCA, FAÇA UM CURATIVO, O FERIDO DEVE PERMANECER 10 MINUTOS SEM USAR O RÁDIO ","MÉDIO CRÍTICO"]
["O TIRO ACERTOU SEU OUVIDO, FAÇA UM CURATIVO, FORNEÇA AO FERIDO UM PROTETOR AURICULAR, ELE DEVE UTILIZAR POR 40 MINUTOS. (DEVOLVA AO MÉDICO)","MÉDIO CRÍTICO"]
["SUA VISÃO FOI COMPROMETIDA, FAÇA UM CURATIVO (USE ATADURA), QUE IMPEÇA A VISÃO DE UM DOS OLHOS, ELE DEVE USAR POR 40 MINUTOS (ELE ESTA EM COMBATE)","MÉDIO CRÍTICO"]
["GRAVE"]
["O TIRO ACERTOU PRÓXIMO À TEMPORA, DE ÁGUA AO FERIDO E FAÇA UM CURATIVO, O FERIDO DEVE PERMANECER 20 MINUTOS FORA DE COMBATE","GRAVE"]
["O TIRO COMPROMETEU SUA VISÃO, FAÇA UM CURATIVO E PERMANEÇA 15 MINUTOS FORA DE COMBATE","GRAVE"]
["SEUS MOVIMENTOS FORAM COMPROMETIDOS, FAÇA UM CURATIVO E ENTREGUE UM PIRULITO (morfina) AO FERIDO. ELE NÃO DEVE EFETUAR DISPAROS ENQUANTO NÃO ACABAR A MORFINA","GRAVE"]
["GRAVE CRÍTICO"]
["O TIRO ACERTOU SEU MAXILAR, FAÇA UM CURATIVO, ENTREGUE UM SACO DE SORO AO OPERADOR, ELE DEVE TRANSPORTAR ESTE SACO POR 30 MINUTOS (DEVOLVA AO MÉDICO APÓS ESTE TEMPO)","GRAVE CRÍTICO"]
["O TIRO ACERTOU NA TESTA,  O FERIDO DEVE SE DIRIGIR AO HC OU BASE, DEVE SER CONSUZIDO PELO MÉDICO","GRAVE CRÍTICO"]
["O FERIMENTO ESTA SANGRANDO MUITO, LAVE O LOCAL, O OPERADOR DEVE FICAR 25 MINUTOS FORA DE COMBATE","GRAVE CRÍTICO"]
["O DISPARO ACERTOU NA TEMPORA, O FERIDO DEVE SER REMOVIDO POR OUTRO OPERADOR ATÉ O HC OU BASE","GRAVE CRÍTICO"]
["CONDICIONAL"]
["O FERIDO ESTA USANDO CAPACETE?. SE A RESPOSTA FOR SIM,  ELE PODE RETORNAR AO COMBATE. SE FOR NÃO DEVE FICAR FORA DE COMBATE POR 25 MINUTOS","COLETE?"]
["O FERIDO ESTA USANDO MÁSCARA?. SE A RESPOSTA FOR SIM,  ELE PODE RETORNAR AO COMBATE. SE FOR NÃO DEVE FICAR FORA DE COMBATE POR 15 MINUTOS","COLETE?"]
["SOLICITE UM NUMERO DE 1 A 10. SE O ESCOLHIDO FOR MAIOR QUE 5 ELE PODE RETORNAR AO COMBATE. SE FOR MENOR FAÇA UM CURATIVO","SORTE?"]
["O FERIDO DEVE RESPONDER À QUESTÃO 336 X 3. SE A RESPOSTA FOR 1008,  ELE PODE RETORNAR AO COMBATE. SE ERRAR DEVE VOLTAR AO HC OU BASE PARA CUIDADOS MÉDICOS","LUCIDO?"]